[Event "24th Bosnjaci Open 2019"]
[Site "Bosnjaci"]
[Date "2019.01.06"]
[Round "6.12"]
[White "Golub, Nikolina"]
[Black "Dabic, Stjepan"]
[Result "0-1"]
[ECO "B73"]
[WhiteElo "1925"]
[BlackElo "2077"]
[Annotator "NA"]
[PlyCount "106"]
[EventDate "2019.01.03"]
[EventType "swiss"]
[EventCountry "CRO"]
[SourceTitle "playchess.com"]
[Source "ChessBase"]
[SourceQuality "1"]
[TimeControl "5400+30"]

1. e4 {[%emt 0:00:30]} c5 {[%emt 0:00:30]} 2. Nf3 {[%emt 0:00:00]} d6 {[%emt 0:00:00]} 3. d4 {[%emt 0:00:00]} cxd4 {[%emt 0:00:00]} 4. Nxd4 {[%emt 0:00:00]} Nf6 {[%emt 0:00:30]} 5. Nc3 {[%emt 0:00:00]} g6 {[%emt 0:00:30]} 6. Be3 {[%emt 0:00:00]} Bg7 {[%emt 0:00:00]} 7. Be2 {[%emt 0:00:00]} O-O {[%emt 0:00:00]} 8. O-O {[%emt 0:00:00]} Nc6 {[%emt 0:00:30]} 9. h3 {[%emt 0:01:00]} d5 {[%emt 0:01:30]} 10. exd5 {[%emt 0:02:30]} Nxd5 {[%emt 0:00:30]} 11. Nxd5 {[%emt 0:03:30]} Qxd5 {[%emt 0:06:30]} 12. Bf3 {[%emt 0:03:30]} Qc4 {[%emt 0:01:30]} 13. Nxc6 {[%emt 0:01:30]} bxc6 {[%emt 0:00:30]} 14. c3 {[%emt 0:11:30]} Bf5 {[%emt 0:16:30]} 15. Qb3 {[%emt 0:04:30]} Qa6 {[%emt 0:02:30]} 16. a4 {[%emt 0:07:30]} e5 {[%emt 0:04:30]} 17. Rfe1 {[%emt 0:03:30]} Bd3 {[%emt 0:00:30]} 18. Bc5 {[%emt 0:02:30]} Rfe8 {[%emt 0:01:30]} 19. Be4 {[%emt 0:07:30]} Bc4 {[%emt 0:01:30]} 20. Qa3 {[%emt 0:01:30]} f5 {[%emt 0:02:30]} 21. Bc2 {[%emt 0:00:30]} Qb7 {[%emt 0:01:30]} 22. b3 {[%emt 0:02:30]} Bd5 {[%emt 0:00:30]} 23. b4 {[%emt 0:00:30]} Qf7 {[%emt 0:03:30]} 24. Rad1 {[%emt 0:03:30]} a6 {[%emt 0:02:30]} 25. f3 {[%emt 0:04:30]} Kh8 {[%emt 0:03:30]} 26. Re2 {[%emt 0:05:30]} Rad8 {[%emt 0:04:30]} 27. Ree1 {[%emt 0:05:30]} Bf6 {[%emt 0:03:30]} 28. Rb1 {[%emt 0:05:30]} Bh4 {[%emt 0:12:30]} 29. Bf2 {[%emt 0:05:30]} Bxf2+ {[%emt 0:00:30]} 30. Kxf2 {[%emt 0:00:00]} Qa7+ {[%emt 0:00:30]} 31. Kg3 {[%emt 0:01:00]} f4+ {[%emt 0:00:30]} 32. Kh2 {[%emt 0:00:00]} Qf2 {[%emt 0:00:30]} 33. Be4 {[%emt 0:02:11]} Be6 {[%emt 0:00:30]} 34. Rg1 {[%emt 0:03:21]} Bxh3 {[%emt 0:04:30]} 35. Rb2 {[%emt 0:00:16]} Qg3+ {[%emt 0:00:30]} 36. Kh1 {[%emt 0:00:03]} Bf5 {[%emt 0:00:30]} 37. Rf1 {[%emt 0:01:13]} Bxe4 {[%emt 0:01:30]} 38. fxe4 {[%emt 0:00:05]} Rd3 {[%emt 0:00:30]} 39. Qb3 {[%emt 0:01:14]} Kg7 {[%emt 0:01:30]} 40. Qc4 {[%emt 0:01:46]} Rxc3 {[%emt 0:01:30]} 41. Qxa6 {[%emt 0:00:06]} Rf8 {[%emt 0:04:19]} 42. Rbf2 {[%emt 0:05:29]} Qh4+ {[%emt 0:04:09]} 43. Kg1 {[%emt 0:00:07]} g5 {[%emt 0:00:42]} 44. Qb7+ {[%emt 0:00:22]} Rf7 {[%emt 0:00:24]} 45. Qb8 {[%emt 0:00:11]} Re7 {[%emt 0:00:19]} 46. Rd2 {[%emt 0:01:01]} Qh5 {[%emt 0:04:01]} 47. Rd8 {[%emt 0:00:10]} Qf7 {[%emt 0:00:05]} 48. a5 {[%emt 0:01:02]} g4 {[%emt 0:00:44]} 49. a6 {[%emt 0:00:40]} f3 {[%emt 0:00:58]} 50. g3 {[%emt 0:00:37]} Rc2 {[%emt 0:01:15]} 51. Rf2 {[%emt 0:05:31]} Rxf2 {[%emt 0:02:05]} 52. a7 {[%emt 0:02:22]} Rg2+ {[%emt 0:00:16]} 53. Kf1 {[%emt 0:00:11]} Qc4+ {[%emt 0:00:11]} 0-1

[Event "24th Bosnjaci Open 2019"]
[Site "Bosnjaci"]
[Date "2019.01.06"]
[Round "6.13"]
[White "Tomljenovic, Mile"]
[Black "Ivekovic, Tihana"]
[Result "0-1"]
[ECO "B30"]
[WhiteElo "1794"]
[BlackElo "2071"]
[Annotator "NA"]
[PlyCount "52"]
[EventDate "2019.01.03"]
[EventType "swiss"]
[EventCountry "CRO"]
[SourceTitle "playchess.com"]
[Source "ChessBase"]
[SourceQuality "1"]
[TimeControl "5400+30"]

1. e4 {[%emt 0:00:30]} c5 {[%emt 0:00:30]} 2. Nc3 {[%emt 0:00:00]} e6 {[%emt 0:00:00]} 3. Nf3 {[%emt 0:00:00]} a6 {[%emt 0:00:00]} 4. a3 {[%emt 0:00:30]} Nc6 {[%emt 0:00:00]} 5. Bc4 {[%emt 0:00:30]} b5 {[%emt 0:00:00]} 6. Ba2 {[%emt 0:00:30]} Nf6 {[%emt 0:00:30]} 7. d3 {[%emt 0:00:00]} Qc7 {[%emt 0:00:30]} 8. Bg5 {[%emt 0:01:00]} Be7 {[%emt 0:00:30]} 9. O-O {[%emt 0:00:30]} O-O {[%emt 0:01:30]} 10. Qd2 {[%emt 0:08:30]} Bb7 {[%emt 0:04:30]} 11. Ne2 {[%emt 0:03:30]} Rad8 {[%emt 0:04:30]} 12. Ng3 {[%emt 0:03:30]} d6 {[%emt 0:06:30]} 13. c3 {[%emt 0:05:30]} Ne5 {[%emt 0:00:30]} 14. Nxe5 {[%emt 0:01:30]} dxe5 {[%emt 0:00:30]} 15. Bxf6 {[%emt 0:00:30]} Bxf6 {[%emt 0:00:30]} 16. Rad1 {[%emt 0:01:30]} g6 {[%emt 0:02:30]} 17. Qe2 {[%emt 0:00:30]} Rd6 {[%emt 0:02:30]} 18. Qg4 {[%emt 0:01:30]} Bg7 {[%emt 0:00:00]} 19. h4 {[%emt 0:00:30]} Qd7 {[%emt 0:02:00]} 20. Bb1 {[%emt 0:00:30]} f5 {[%emt 0:01:30]} 21. exf5 {[%emt 0:03:30]} exf5 {[%emt 0:00:30]} 22. Qe2 {[%emt 0:00:30]} Kh8 {[%emt 0:04:30]} 23. f3 {[%emt 0:05:30]} Qd8 {[%emt 0:02:30]} 24. h5 {[%emt 0:00:30]} Qg5 {[%emt 0:00:30]} 25. Qf2 {[%emt 0:00:30]} gxh5 {[%emt 0:00:30]} 26. Qxc5 {[%emt 0:00:30]} Rg6 {[%emt 0:00:30]} 0-1

[Event "24th Bosnjaci Open 2019"]
[Site "Bosnjaci"]
[Date "2019.01.08"]
[Round "6.14"]
[White "Dejanovic, Tereza"]
[Black "Lazor, Vladimir"]
[Result "0-1"]
[ECO "B08"]
[WhiteElo "1916"]
[BlackElo "2164"]
[Annotator "ChessBase"]
[PlyCount "86"]
[EventDate "2019.01.03"]
[EventType "swiss"]
[EventCountry "CRO"]
[TimeControl "5400+30"]

1. e4 {[%emt 0:00:30]} d6 {[%emt 0:05:30]} 2. d4 {[%emt 0:00:00]} g6 {[%emt 0:00:30]} 3. Nf3 {[%emt 0:01:00]} Bg7 {[%emt 0:00:30]} 4. Nc3 {[%emt 0:00:30]} Nf6 {[%emt 0:00:30]} 5. Bd3 {[%emt 0:01:30]} Nc6 {[%emt 0:00:30]} 6. a3 {[%emt 0:01:30]} Bg4 {[%emt 0:01:30]} 7. Be2 {[%emt 0:02:30]} O-O {[%emt 0:01:30]} 8. Be3 {[%emt 0:01:30]} e5 {[%emt 0:00:30]} 9. d5 {[%emt 0:01:30]} Ne7 {[%emt 0:00:30]} 10. O-O {[%emt 0:03:30]} a6 {[%emt 0:00:30]} 11. h3 {[%emt 0:02:30]} Bd7 {[%emt 0:00:30]} 12. Qd2 {[%emt 0:08:30]} Ne8 {[%emt 0:00:30]} 13. Bh6 {[%emt 0:03:30]} f5 {[%emt 0:00:30]} 14. Bxg7 {[%emt 0:00:30]} Kxg7 {[%emt 0:01:30]} 15. exf5 {[%emt 0:01:30]} Nxf5 {[%emt 0:00:30]} 16. Ne4 {[%emt 0:03:30]} Nf6 {[%emt 0:09:30]} 17. Nxf6 {[%emt 0:04:30]} Qxf6 {[%emt 0:00:30]} 18. Qg5 {[%emt 0:00:30]} Qf7 {[%emt 0:01:30]} 19. c4 {[%emt 0:01:30]} h6 {[%emt 0:00:30]} 20. Qd2 {[%emt 0:00:30]} g5 {[%emt 0:00:30]} 21. Rac1 {[%emt 0:02:30]} b6 {[%emt 0:01:30]} 22. b4 {[%emt 0:01:30]} a5 {[%emt 0:01:30]} 23. c5 {[%emt 0:02:30]} axb4 {[%emt 0:00:30]} 24. axb4 {[%emt 0:00:30]} bxc5 {[%emt 0:00:30]} 25. bxc5 {[%emt 0:00:30]} Rae8 {[%emt 0:04:30]} 26. c6 {[%emt 0:10:30]} Bc8 {[%emt 0:00:30]} 27. Ra1 {[%emt 0:01:30]} Ne7 {[%emt 0:00:30]} 28. Rfd1 {[%emt 0:00:30]} Ng6 {[%emt 0:00:30]} 29. Ra7 {[%emt 0:08:30]} Re7 {[%emt 0:00:30]} 30. Ra8 {[%emt 0:05:30]} Qf6 {[%emt 0:03:30]} 31. Rf1 {[%emt 0:03:30]} Nf4 {[%emt 0:00:30]} 32. Nh2 {[%emt 0:00:30]} h5 {[%emt 0:01:30]} 33. Ba6 {[%emt 0:04:30]} Bxa6 {[%emt 0:01:30]} 34. Rxa6 {[%emt 0:00:30]} Qg6 {[%emt 0:00:30]} 35. f3 {[%emt 0:03:35]} Rfe8 {[%emt 0:07:30]} 36. Ra7 {[%emt 0:10:28]} Kg8 {[%emt 0:16:30]} 37. g3 {[%emt 0:04:58]} Nxh3+ {[%emt 0:00:30]} 38. Kg2 {[%emt 0:00:03]} g4 {[%emt 0:00:30]} 39. fxg4 {[%emt 0:00:27]} hxg4 {[%emt 0:00:30]} 40. Qe2 {[%emt 0:00:53]} Rg7 {[%emt 0:02:30]} 41. Ra4 {[%emt 0:04:54]} Nf4+ {[%emt 0:03:30]} 42. gxf4 {[%emt 0:00:19]} exf4 {[%emt 0:00:30]} 43. Nxg4 {[%emt 0:00:46]} Rxe2+ {[%emt 0:01:30]} 0-1

[Event "24th Bosnjaci Open 2019"]
[Site "Bosnjaci"]
[Date "2019.01.06"]
[Round "6.15"]
[White "Boban, Sten"]
[Black "Ljubicic, Mario"]
[Result "1-0"]
[ECO "E73"]
[WhiteElo "2105"]
[BlackElo "1886"]
[Annotator "NA"]
[PlyCount "67"]
[EventDate "2019.01.03"]
[EventType "swiss"]
[EventCountry "CRO"]
[SourceTitle "playchess.com"]
[Source "ChessBase"]
[SourceQuality "1"]
[TimeControl "5400+30"]

1. d4 {[%emt 0:00:30]} Nf6 {[%emt 0:00:30]} 2. c4 {[%emt 0:00:00]} g6 {[%emt 0:00:00]} 3. Nc3 {[%emt 0:00:00]} Bg7 {[%emt 0:00:00]} 4. e4 {[%emt 0:00:30]} d6 {[%emt 0:00:30]} 5. Be2 {[%emt 0:00:30]} O-O {[%emt 0:00:30]} 6. Be3 {[%emt 0:00:30]} Nbd7 {[%emt 0:00:30]} 7. g4 {[%emt 0:00:00]} e5 {[%emt 0:01:30]} 8. d5 {[%emt 0:00:00]} a5 {[%emt 0:00:30]} 9. g5 {[%emt 0:00:30]} Ne8 {[%emt 0:00:30]} 10. h4 {[%emt 0:00:30]} Nc5 {[%emt 0:06:30]} 11. Nf3 {[%emt 0:05:30]} Bg4 {[%emt 0:08:30]} 12. Nd2 {[%emt 0:00:00]} Bxe2 {[%emt 0:00:30]} 13. Qxe2 {[%emt 0:00:00]} Qd7 {[%emt 0:04:30]} 14. h5 {[%emt 0:01:30]} c6 {[%emt 0:03:30]} 15. f3 {[%emt 0:01:30]} Nc7 {[%emt 0:01:30]} 16. Nb3 {[%emt 0:04:30]} b6 {[%emt 0:07:30]} 17. Qh2 {[%emt 0:02:30]} Bh8 {[%emt 0:00:00]} 18. dxc6 {[%emt 0:01:30]} Qe7 {[%emt 0:01:00]} 19. Nd5 {[%emt 0:00:30]} Nxd5 {[%emt 0:00:30]} 20. cxd5 {[%emt 0:00:00]} Ra7 {[%emt 0:02:30]} 21. O-O-O {[%emt 0:09:00]} Nxb3+ {[%emt 0:08:30]} 22. axb3 {[%emt 0:00:00]} Rb8 {[%emt 0:00:30]} 23. Qh3 {[%emt 0:01:00]} a4 {[%emt 0:06:30]} 24. hxg6 {[%emt 0:01:30]} fxg6 {[%emt 0:00:30]} 25. Qe6+ {[%emt 0:00:30]} Qxe6 {[%emt 0:01:30]} 26. dxe6 {[%emt 0:00:30]} axb3 {[%emt 0:01:30]} 27. Rxd6 {[%emt 0:02:30]} Bg7 {[%emt 0:02:30]} 28. Rd7 {[%emt 0:10:30]} Ra6 {[%emt 0:05:30]} 29. c7 {[%emt 0:01:30]} Re8 {[%emt 0:00:30]} 30. Rd8 {[%emt 0:00:30]} Ra1+ {[%emt 0:00:30]} 31. Kd2 {[%emt 0:00:30]} Ra8 {[%emt 0:00:30]} 32. Bxb6 {[%emt 0:00:30]} Bf8 {[%emt 0:00:30]} 33. Rc1 {[%emt 0:00:30]} Bb4+ {[%emt 0:00:30]} 34. Ke2 {[%emt 0:00:00]} 1-0

[Event "24th Bosnjaci Open 2019"]
[Site "Bosnjaci"]
[Date "2019.01.06"]
[Round "6.16"]
[White "Tomas, Ante"]
[Black "Tadic, Drago"]
[Result "1-0"]
[ECO "C50"]
[WhiteElo "2102"]
[BlackElo "1880"]
[Annotator "NA"]
[PlyCount "49"]
[EventDate "2019.01.03"]
[EventType "swiss"]
[EventCountry "CRO"]
[SourceTitle "playchess.com"]
[Source "ChessBase"]
[SourceQuality "1"]
[TimeControl "5400+30"]

1. e4 {[%emt 0:01:30]} e5 {[%emt 0:00:30]} 2. Nf3 {[%emt 0:01:30]} Nc6 {[%emt 0:01:30]} 3. d4 {[%emt 0:02:30]} exd4 {[%emt 0:00:30]} 4. Bc4 {[%emt 0:00:30]} h6 {[%emt 0:06:30]} 5. O-O {[%emt 0:01:30]} Bc5 {[%emt 0:00:30]} 6. c3 {[%emt 0:01:30]} dxc3 {[%emt 0:03:30]} 7. Bxf7+ {[%emt 0:01:30]} Kf8 {[%emt 0:01:30]} 8. Bb3 {[%emt 0:11:30]} d6 {[%emt 0:00:30]} 9. Nxc3 {[%emt 0:03:30]} Nf6 {[%emt 0:00:30]} 10. e5 {[%emt 0:09:30]} Ng4 {[%emt 0:06:30]} 11. Ne4 {[%emt 0:15:30]} Bf5 {[%emt 0:01:30]} 12. Qd5 {[%emt 0:04:30]} Qe7 {[%emt 0:11:30]} 13. exd6 {[%emt 0:01:30]} Bxd6 {[%emt 0:02:30]} 14. Qxf5+ {[%emt 0:00:00]} Nf6 {[%emt 0:00:30]} 15. Nxf6 {[%emt 0:01:00]} Qxf6 {[%emt 0:00:00]} 16. Qxf6+ {[%emt 0:00:30]} gxf6 {[%emt 0:00:00]} 17. Be3 {[%emt 0:00:30]} Ne5 {[%emt 0:00:30]} 18. Nxe5 {[%emt 0:00:00]} fxe5 {[%emt 0:00:30]} 19. Rac1 {[%emt 0:00:00]} Ke7 {[%emt 0:00:30]} 20. Bc5 {[%emt 0:00:30]} Rhc8 {[%emt 0:01:30]} 21. Rfe1 {[%emt 0:02:30]} b6 {[%emt 0:00:00]} 22. Rxe5+ {[%emt 0:00:30]} Kf8 {[%emt 0:01:00]} 23. Rf5+ {[%emt 0:00:30]} Kg7 {[%emt 0:00:30]} 24. Bxd6 {[%emt 0:01:30]} cxd6 {[%emt 0:00:00]} 25. Rd1 {[%emt 0:00:30]} 1-0

[Event "24th Bosnjaci Open 2019"]
[Site "Bosnjaci"]
[Date "2019.01.06"]
[Round "6.17"]
[White "Bekcic, Martin"]
[Black "Ascic, Anto"]
[Result "1/2-1/2"]
[ECO "A48"]
[WhiteElo "1898"]
[BlackElo "2093"]
[Annotator "NA"]
[PlyCount "41"]
[EventDate "2019.01.03"]
[EventType "swiss"]
[EventCountry "CRO"]
[SourceTitle "playchess.com"]
[Source "ChessBase"]
[SourceQuality "1"]
[TimeControl "5400+30"]

1. d4 {[%emt 0:00:30]} Nf6 {[%emt 0:00:30]} 2. Bf4 {[%emt 0:00:00]} g6 {[%emt 0:00:30]} 3. e3 {[%emt 0:00:00]} Bg7 {[%emt 0:00:00]} 4. Nf3 {[%emt 0:00:30]} d6 {[%emt 0:00:00]} 5. Nbd2 {[%emt 0:00:30]} O-O {[%emt 0:00:30]} 6. Bc4 {[%emt 0:00:30]} Nbd7 {[%emt 0:01:30]} 7. h3 {[%emt 0:01:30]} Re8 {[%emt 0:00:30]} 8. O-O {[%emt 0:00:00]} h6 {[%emt 0:00:30]} 9. c3 {[%emt 0:01:00]} e5 {[%emt 0:01:30]} 10. dxe5 {[%emt 0:02:30]} dxe5 {[%emt 0:00:30]} 11. Bh2 {[%emt 0:00:30]} e4 {[%emt 0:09:30]} 12. Nd4 {[%emt 0:01:30]} a6 {[%emt 0:07:30]} 13. b4 {[%emt 0:07:30]} c5 {[%emt 0:05:30]} 14. bxc5 {[%emt 0:01:30]} Nxc5 {[%emt 0:00:30]} 15. a4 {[%emt 0:08:30]} Qa5 {[%emt 0:11:30]} 16. Qc2 {[%emt 0:02:30]} Bd7 {[%emt 0:01:30]} 17. N2b3 {[%emt 0:01:30]} Nxb3 {[%emt 0:00:00]} 18. Qxb3 {[%emt 0:00:30]} Rec8 {[%emt 0:03:00]} 19. Bxf7+ {[%emt 0:01:30]} Kh7 {[%emt 0:00:30]} 20. c4 {[%emt 0:05:30]} Rc5 {[%emt 0:03:30]} 21. Be6 {[%emt 0:08:30]} 1/2-1/2

[Event "24th Bosnjaci Open 2019"]
[Site "Bosnjaci"]
[Date "2019.01.06"]
[Round "6.18"]
[White "Krso, Enver"]
[Black "Caric, Mato"]
[Result "0-1"]
[ECO "A34"]
[WhiteElo "1840"]
[BlackElo "2088"]
[Annotator "NA"]
[PlyCount "108"]
[EventDate "2019.01.03"]
[EventType "swiss"]
[EventCountry "CRO"]
[SourceTitle "playchess.com"]
[Source "ChessBase"]
[SourceQuality "1"]
[TimeControl "5400+30"]

1. e4 {[%emt 0:00:30]} c5 {[%emt 0:00:30]} 2. Nf3 {[%emt 0:00:30]} d6 {[%emt 0:00:30]} 3. Be2 {[%emt 0:00:30]} Nf6 {[%emt 0:00:30]} 4. d3 {[%emt 0:01:30]} g6 {[%emt 0:00:30]} 5. c4 {[%emt 0:01:30]} Bg7 {[%emt 0:00:30]} 6. Nc3 {[%emt 0:00:00]} Nc6 {[%emt 0:01:30]} 7. O-O {[%emt 0:01:00]} O-O {[%emt 0:00:30]} 8. a3 {[%emt 0:01:30]} a6 {[%emt 0:06:30]} 9. Rb1 {[%emt 0:00:00]} Nd7 {[%emt 0:08:30]} 10. Bd2 {[%emt 0:01:00]} Nd4 {[%emt 0:08:30]} 11. Qc1 {[%emt 0:05:30]} Nb3 {[%emt 0:03:30]} 12. Qd1 {[%emt 0:00:30]} Nxd2 {[%emt 0:00:30]} 13. Qxd2 {[%emt 0:00:00]} Ne5 {[%emt 0:00:00]} 14. Nd1 {[%emt 0:01:00]} Nxf3+ {[%emt 0:01:00]} 15. Bxf3 {[%emt 0:00:30]} b5 {[%emt 0:02:30]} 16. b3 {[%emt 0:01:30]} Rb8 {[%emt 0:00:30]} 17. Ne3 {[%emt 0:00:30]} Bd7 {[%emt 0:07:30]} 18. Ng4 {[%emt 0:04:30]} h5 {[%emt 0:03:30]} 19. Ne3 {[%emt 0:00:30]} e6 {[%emt 0:01:30]} 20. h3 {[%emt 0:02:30]} b4 {[%emt 0:11:30]} 21. a4 {[%emt 0:00:30]} Qh4 {[%emt 0:01:30]} 22. Qe2 {[%emt 0:03:30]} Be5 {[%emt 0:04:30]} 23. Rfd1 {[%emt 0:02:30]} Kg7 {[%emt 0:02:30]} 24. g3 {[%emt 0:04:30]} Qg5 {[%emt 0:01:30]} 25. h4 {[%emt 0:01:30]} Qf6 {[%emt 0:02:30]} 26. Ng2 {[%emt 0:00:30]} Qe7 {[%emt 0:01:30]} 27. Kh2 {[%emt 0:03:30]} Bc6 {[%emt 0:01:30]} 28. Rh1 {[%emt 0:00:30]} f5 {[%emt 0:00:30]} 29. Kg1 {[%emt 0:17:30]} Bd4 {[%emt 0:03:30]} 30. Rf1 {[%emt 0:04:30]} Rf7 {[%emt 0:02:30]} 31. Nf4 {[%emt 0:09:30]} Rbf8 {[%emt 0:05:08]} 32. Nh3 {[%emt 0:02:30]} fxe4 {[%emt 0:06:28]} 33. Bxe4 {[%emt 0:01:30]} Bxe4 {[%emt 0:00:17]} 34. Qxe4 {[%emt 0:00:30]} Rf5 {[%emt 0:03:12]} 35. Rh2 {[%emt 0:00:00]} d5 {[%emt 0:02:08]} 36. Qe2 {[%emt 0:01:00]} dxc4 {[%emt 0:00:54]} 37. dxc4 {[%emt 0:00:30]} Rf3 {[%emt 0:02:18]} 38. Rg2 {[%emt 0:01:30]} Rxb3 {[%emt 0:00:47]} 39. Qe4 {[%emt 0:00:30]} e5 {[%emt 0:02:15]} 40. Kh1 {[%emt 0:00:30]} Rb2 {[%emt 0:00:16]} 41. Ng5 {[%emt 0:00:30]} Rfxf2 {[%emt 0:01:24]} 42. Rgxf2 {[%emt 0:00:30]} Rxf2 {[%emt 0:00:05]} 43. Rxf2 {[%emt 0:00:30]} Bxf2 {[%emt 0:00:03]} 44. Kg2 {[%emt 0:00:30]} Bd4 {[%emt 0:00:30]} 45. Qd5 {[%emt 0:00:30]} b3 {[%emt 0:01:01]} 46. Qc6 {[%emt 0:00:30]} b2 {[%emt 0:01:21]} 47. Ne6+ {[%emt 0:00:30]} Kh6 {[%emt 0:00:40]} 48. Qc8 {[%emt 0:01:30]} e4 {[%emt 0:00:26]} 49. Nxd4 {[%emt 0:00:30]} cxd4 {[%emt 0:00:03]} 50. Qh8+ {[%emt 0:00:30]} Qh7 {[%emt 0:00:30]} 51. Qf8+ {[%emt 0:00:30]} Qg7 {[%emt 0:00:02]} 52. Qb4 {[%emt 0:00:30]} d3 {[%emt 0:00:30]} 53. Qd2+ {[%emt 0:00:30]} Kh7 {[%emt 0:00:02]} 54. Qe1 {[%emt 0:00:30]} d2 {[%emt 0:00:31]} 0-1

[Event "24th Bosnjaci Open 2019"]
[Site "Bosnjaci"]
[Date "2019.01.06"]
[Round "6.19"]
[White "Egerc, Josip"]
[Black "Borzan, Andrej"]
[Result "0-1"]
[ECO "B07"]
[WhiteElo "2081"]
[BlackElo "1818"]
[Annotator "NA"]
[PlyCount "50"]
[EventDate "2019.01.03"]
[EventType "swiss"]
[EventCountry "CRO"]
[SourceTitle "playchess.com"]
[Source "ChessBase"]
[SourceQuality "1"]
[TimeControl "5400+30"]

1. e4 {[%emt 0:08:30]} d6 {[%emt 0:00:30]} 2. d4 {[%emt 0:00:30]} Nf6 {[%emt 0:00:00]} 3. Bd3 {[%emt 0:00:30]} g6 {[%emt 0:00:00]} 4. h3 {[%emt 0:00:30]} Bg7 {[%emt 0:00:00]} 5. Nf3 {[%emt 0:00:00]} O-O {[%emt 0:00:00]} 6. Be3 {[%emt 0:00:00]} Nbd7 {[%emt 0:00:30]} 7. Qd2 {[%emt 0:00:00]} e5 {[%emt 0:00:00]} 8. Bh6 {[%emt 0:00:00]} exd4 {[%emt 0:01:00]} 9. Bxg7 {[%emt 0:01:30]} Kxg7 {[%emt 0:00:00]} 10. Nxd4 {[%emt 0:00:30]} Nc5 {[%emt 0:00:00]} 11. Nc3 {[%emt 0:00:30]} Re8 {[%emt 0:00:30]} 12. f3 {[%emt 0:01:30]} d5 {[%emt 0:00:30]} 13. b4 {[%emt 0:00:30]} dxe4 {[%emt 0:00:30]} 14. O-O {[%emt 0:00:30]} Qxd4+ {[%emt 0:00:00]} 15. Kh1 {[%emt 0:00:30]} Nxd3 {[%emt 0:00:00]} 16. cxd3 {[%emt 0:00:30]} exd3 {[%emt 0:00:30]} 17. Nb5 {[%emt 0:02:30]} Qc4 {[%emt 0:02:30]} 18. a4 {[%emt 0:00:30]} Re2 {[%emt 0:00:30]} 19. Qg5 {[%emt 0:00:00]} d2 {[%emt 0:02:30]} 20. Rad1 {[%emt 0:00:00]} Qxb4 {[%emt 0:03:30]} 21. Nxc7 {[%emt 0:00:30]} Rb8 {[%emt 0:00:30]} 22. Qxf6+ {[%emt 0:00:00]} Kxf6 {[%emt 0:00:30]} 23. Nd5+ {[%emt 0:00:00]} Kg7 {[%emt 0:00:00]} 24. Nxb4 {[%emt 0:00:00]} Be6 {[%emt 0:00:00]} 25. Nd3 {[%emt 0:02:00]} Bb3 {[%emt 0:00:30]} 0-1

[Event "24th Bosnjaci Open 2019"]
[Site "Bosnjaci"]
[Date "2019.01.06"]
[Round "6.20"]
[White "Mutapcic, Ilija"]
[Black "Jergovic, Andrija"]
[Result "1-0"]
[ECO "D85"]
[WhiteElo "1836"]
[BlackElo "2012"]
[Annotator "NA"]
[PlyCount "103"]
[EventDate "2019.01.03"]
[EventType "swiss"]
[EventCountry "CRO"]
[SourceTitle "playchess.com"]
[Source "ChessBase"]
[SourceQuality "1"]
[TimeControl "5400+30"]

1. d4 {[%emt 0:00:30]} Nf6 {[%emt 0:00:30]} 2. Nf3 {[%emt 0:00:00]} g6 {[%emt 0:00:30]} 3. c4 {[%emt 0:00:00]} Bg7 {[%emt 0:00:00]} 4. Nc3 {[%emt 0:00:30]} d5 {[%emt 0:00:00]} 5. cxd5 {[%emt 0:00:30]} Nxd5 {[%emt 0:00:30]} 6. e4 {[%emt 0:00:00]} Nxc3 {[%emt 0:00:00]} 7. bxc3 {[%emt 0:00:00]} c5 {[%emt 0:00:00]} 8. Bb5+ {[%emt 0:01:30]} Bd7 {[%emt 0:00:00]} 9. Bxd7+ {[%emt 0:00:00]} Nxd7 {[%emt 0:00:00]} 10. O-O {[%emt 0:00:00]} O-O {[%emt 0:00:30]} 11. Be3 {[%emt 0:00:30]} Qc7 {[%emt 0:01:30]} 12. Rc1 {[%emt 0:02:30]} Rad8 {[%emt 0:01:30]} 13. Qb3 {[%emt 0:00:30]} b6 {[%emt 0:03:30]} 14. e5 {[%emt 0:01:30]} e6 {[%emt 0:01:30]} 15. a4 {[%emt 0:01:30]} Rc8 {[%emt 0:00:30]} 16. Rfe1 {[%emt 0:00:30]} c4 {[%emt 0:00:30]} 17. Qa3 {[%emt 0:00:30]} Nb8 {[%emt 0:00:30]} 18. Ng5 {[%emt 0:00:30]} Qc6 {[%emt 0:01:30]} 19. f3 {[%emt 0:01:30]} Na6 {[%emt 0:00:30]} 20. Ne4 {[%emt 0:02:30]} Nc7 {[%emt 0:01:30]} 21. Nd6 {[%emt 0:04:30]} Nd5 {[%emt 0:01:30]} 22. Nxc8 {[%emt 0:00:30]} Rxc8 {[%emt 0:00:00]} 23. Bd2 {[%emt 0:00:30]} Bf8 {[%emt 0:00:00]} 24. Qa1 {[%emt 0:00:30]} a6 {[%emt 0:00:30]} 25. Rb1 {[%emt 0:00:30]} Rb8 {[%emt 0:01:30]} 26. Rb2 {[%emt 0:01:30]} Be7 {[%emt 0:01:30]} 27. g3 {[%emt 0:00:30]} Rb7 {[%emt 0:05:30]} 28. Kf2 {[%emt 0:00:30]} Bf8 {[%emt 0:01:30]} 29. h4 {[%emt 0:00:30]} Be7 {[%emt 0:03:30]} 30. Rh1 {[%emt 0:00:30]} Bd8 {[%emt 0:01:30]} 31. Qd1 {[%emt 0:01:30]} b5 {[%emt 0:00:30]} 32. axb5 {[%emt 0:00:30]} axb5 {[%emt 0:00:00]} 33. Qa1 {[%emt 0:01:30]} f6 {[%emt 0:05:00]} 34. Qa8 {[%emt 0:00:30]} Qd7 {[%emt 0:00:30]} 35. exf6 {[%emt 0:00:30]} b4 {[%emt 0:00:00]} 36. Bg5 {[%emt 0:00:30]} Kf7 {[%emt 0:00:00]} 37. h5 {[%emt 0:00:30]} Nb6 {[%emt 0:04:30]} 38. Qa1 {[%emt 0:05:30]} bxc3 {[%emt 0:01:30]} 39. hxg6+ {[%emt 0:01:30]} Kxg6 {[%emt 0:00:00]} 40. Rxb6 {[%emt 0:01:30]} Bxb6 {[%emt 0:01:00]} 41. Be3 {[%emt 0:00:30]} Kxf6 {[%emt 0:03:30]} 42. Qxc3 {[%emt 0:00:30]} Qd5 {[%emt 0:00:30]} 43. Rh6+ {[%emt 0:01:30]} Kg7 {[%emt 0:00:30]} 44. Qc2 {[%emt 0:01:30]} Kg8 {[%emt 0:03:30]} 45. Rh4 {[%emt 0:02:30]} Bd8 {[%emt 0:27:30]} 46. Rg4+ {[%emt 0:00:30]} Rg7 {[%emt 0:01:30]} 47. Rxg7+ {[%emt 0:00:30]} Kxg7 {[%emt 0:00:00]} 48. Qe4 {[%emt 0:00:00]} Qd7 {[%emt 0:11:00]} 49. Ke2 {[%emt 0:01:00]} Bf6 {[%emt 0:04:02]} 50. g4 {[%emt 0:00:30]} Qd5 {[%emt 0:04:05]} 51. Qf4 {[%emt 0:00:30]} Kg8 {[%emt 0:02:02]} 52. Qxf6 {[%emt 0:00:30]} 1-0